lending/lending_fUSD_20250429
["ID","MTS","AMOUNT","RATE_DAILY","PERIOD"]
[359360615,1745950248287,-470.0,0.0002904,2]
[359360617,1745950248297,-584.9,0.0002904,2]
[359360620,1745950248309,-541.78,0.0002904,2]
[359360622,1745950248320,-470.0,0.0002904,2]
[359360624,1745950248331,-470.0,0.0002904,2]
[359360626,1745950248343,-2553.99,0.0002904,2]
[359360628,1745950248354,-2433.67,0.0002904,2]
[359360630,1745950248365,-810.71,0.0002904,2]
[359360633,1745950248376,-582.22,0.0002904,2]
[359360635,1745950248386,-470.0,0.0002904,2]
[359360637,1745950248398,-470.0,0.0002904,2]
[359360639,1745950248408,-470.0,0.0002904,2]
[359360641,1745950248420,-470.0,0.0002904,2]
[359360643,1745950248431,-530.63,0.0002904,2]
[359360646,1745950248443,-470.0,0.0002904,2]
[359360648,1745950248455,-470.0,0.0002904,2]
[359360650,1745950248466,-522.72,0.0002904,2]
[359360652,1745950248480,-470.0,0.00029041,2]
[359360654,1745950248491,-470.0,0.00029041,2]
[359360657,1745950248503,-567.98,0.00029041,2]
[359360659,1745950248514,-470.0,0.00029041,2]
[359360661,1745950248526,-470.0,0.00029041,2]
[359360663,1745950248537,-470.0,0.00029041,2]
[359360665,1745950248551,-302.99349282,0.00029041,2]
[359360668,1745950248562,-470.0,0.00029041,2]
[359360670,1745950248573,-470.0,0.00029041,2]
[359360672,1745950248585,-500.0,0.0002913,2]
[359360674,1745950248596,-1000.388,0.00029131,2]
[359360676,1745950248607,-797.0,0.00029131,2]
[359360678,1745950248618,-1288.0,0.00029131,2]
[359360680,1745950248629,-1448.0,0.00029131,2]
[359360683,1745950248640,-549.0,0.00029131,2]
[359360685,1745950248651,-913.0,0.00029131,2]
[359360687,1745950248662,-2067.0,0.00029131,2]
[359360689,1745950248674,-580.0,0.00029131,2]
[359360692,1745950248685,-3998.0,0.00029131,2]
[359360694,1745950248697,-6743.0,0.00029131,2]
[359360696,1745950248709,-153.0,0.00029131,2]
[359360698,1745950248720,-877.0,0.00029131,2]
[359360700,1745950248732,-1137.0,0.00029131,2]
[359360702,1745950248743,-500.0,0.00029148,5]
[359360705,1745950248754,-500.0,0.00029148,5]
[359360707,1745950248765,-1556.5197592,0.00029272,2]
[359360709,1745950248775,-25129.2154033,0.00029304,3]
[359360711,1745950248786,-470.0,0.00029313,2]
[359360713,1745950248797,-470.0,0.00029313,2]
[359360715,1745950248809,-470.0,0.00029313,2]
[359360718,1745950248822,-540.63,0.00029314,2]
[359360720,1745950248833,-470.0,0.00029314,2]
[359360722,1745950248843,-470.0,0.00029314,2]
[359360724,1745950248853,-584.9,0.00029314,2]
[359360726,1745950248863,-541.78,0.00029314,2]
[359360728,1745950248875,-375.52,0.00029314,2]
[359360730,1745950248885,-470.0,0.00029314,2]
[359360732,1745950248896,-2553.99,0.00029314,2]
[359360734,1745950248907,-2433.67,0.00029314,2]
[359360737,1745950248920,-810.71,0.00029314,2]
[359360739,1745950248933,-582.22,0.00029314,2]
[359360741,1745950248943,-470.0,0.00029314,2]
[359360743,1745950248953,-470.0,0.00029314,2]
[359360745,1745950248963,-470.0,0.00029314,2]
[359360747,1745950248974,-470.0,0.00029314,2]
[359360749,1745950248984,-530.63,0.00029314,2]
[359360751,1745950248994,-470.0,0.00029314,2]
[359360753,1745950249004,-470.0,0.00029314,2]
[359360756,1745950249014,-522.72,0.00029314,2]
[359360758,1745950249025,-470.0,0.00029315,2]
[359360760,1745950249036,-470.0,0.00029315,2]
[359360762,1745950249047,-567.98,0.00029315,2]
[359360764,1745950249060,-470.0,0.00029315,2]
[359360766,1745950249071,-470.0,0.00029315,2]
[359360768,1745950249081,-470.0,0.00029315,2]
[359360770,1745950249092,-470.0,0.00029315,2]
[359360773,1745950249102,-470.0,0.00029315,2]
[359360775,1745950249112,-470.0,0.00029587,2]
[359360777,1745950249124,-470.0,0.00029587,2]
[359360779,1745950249134,-409.15916893,0.00029587,2]
[359360781,1745950249145,-540.63,0.00029588,2]
[359360783,1745950249155,-470.0,0.00029588,2]
[359360785,1745950249166,-516.99,0.00029588,2]
[359360787,1745950249176,-584.9,0.00029588,2]
[359360789,1745950249186,-541.78,0.00029588,2]
[359360792,1745950249197,-470.0,0.00029588,2]
[359360794,1745950249207,-2553.99,0.00029588,2]
[359360796,1745950249218,-2433.67,0.00029588,2]
[359360798,1745950249229,-810.71,0.00029588,2]
[359360800,1745950249240,-582.22,0.00029588,2]
[359360802,1745950249252,-470.0,0.00029588,2]
[359360804,1745950249263,-470.0,0.00029588,2]
[359360806,1745950249274,-470.0,0.00029588,2]
[359360809,1745950249284,-470.0,0.00029588,2]
[359360811,1745950249294,-530.63,0.00029588,2]
[359360813,1745950249304,-470.0,0.00029588,2]
[359360815,1745950249315,-470.0,0.00029588,2]
[359360817,1745950249327,-522.72,0.00029588,2]
[359360819,1745950249336,-470.0,0.00029589,2]
[359360821,1745950249347,-470.0,0.00029589,2]
[359360823,1745950249357,-567.98,0.00029589,2]
[359360825,1745950249368,-470.0,0.00029589,2]
[359360828,1745950249378,-470.0,0.00029589,2]
[359360830,1745950249389,-265.42,0.00029589,2]
[359360832,1745950249399,-470.0,0.00029589,2]
[359360834,1745950249409,-470.0,0.00029589,2]
[359360836,1745950249419,-340.24696067,0.00029629,2]
[359360838,1745950249430,-250.0,0.00029693,2]
[359360840,1745950249442,-25129.2154033,0.00029853,3]
[359360842,1745950249453,-470.0,0.00029861,2]
[359360844,1745950249465,-470.0,0.00029861,2]
[359360846,1745950249478,-540.63,0.00029862,2]
[359360848,1745950249488,-470.0,0.00029862,2]
[359360851,1745950249499,-584.9,0.00029862,2]
[359360853,1745950249509,-541.78,0.00029862,2]
[359360855,1745950249521,-470.0,0.00029862,2]
[359360857,1745950249532,-2553.99,0.00029862,2]
[359360859,1745950249543,-2433.67,0.00029862,2]
[359360861,1745950249555,-810.71,0.00029862,2]
[359360863,1745950249566,-582.22,0.00029862,2]
[359360865,1745950249577,-470.0,0.00029862,2]
[359360867,1745950249587,-470.0,0.00029862,2]
[359360869,1745950249597,-470.0,0.00029862,2]
[359360871,1745950249607,-470.0,0.00029862,2]
[359360874,1745950249618,-530.63,0.00029862,2]
[359360876,1745950249628,-470.0,0.00029862,2]
[359360878,1745950249640,-470.0,0.00029862,2]
[359360880,1745950249651,-522.72,0.00029862,2]
[359360882,1745950249661,-574.45748412,0.00029863,2]
[359360884,1745950249672,-470.0,0.00029863,2]
[359360886,1745950249682,-567.98,0.00029863,2]
[359360888,1745950249692,-470.0,0.00029863,2]
[359360890,1745950249702,-470.0,0.00029863,2]
[359360893,1745950249712,-470.0,0.00029863,2]
[359360895,1745950249722,-470.0,0.00029863,2]
[359360897,1745950249734,-633.222582,0.00029863,2]
[359360899,1745950249745,-205.74733371,0.00030035,2]
[359360901,1745950249755,-21094.3903568,0.00030126,3]
[359360903,1745950249765,-470.0,0.00030135,2]
[359360905,1745950249775,-470.0,0.00030135,2]
[359360907,1745950249785,-470.0,0.00030136,2]
[359360910,1745950249795,-567.98,0.00030136,2]
[359360912,1745950249806,-540.63,0.00030136,2]
[359360914,1745950249817,-470.0,0.00030136,2]
[359360916,1745950249828,-470.0,0.00030136,2]
[359360918,1745950249838,-164.833706,0.00030136,2]
[359360920,1745950249848,-470.0,0.00030136,2]
[359360922,1745950249858,-584.9,0.00030136,2]
[359360924,1745950249869,-541.78,0.00030136,2]
[359360926,1745950249880,-470.0,0.00030136,2]
[359360928,1745950249891,-470.0,0.00030136,2]
[359360930,1745950249902,-388.3,0.00030136,2]
[359360933,1745950249912,-2553.99,0.00030136,2]
[359360935,1745950249923,-2433.67,0.00030136,2]
[359360937,1745950249933,-810.71,0.00030136,2]
[359360939,1745950249943,-582.22,0.00030136,2]
[359360941,1745950249953,-470.0,0.00030136,2]
[359360943,1745950249964,-506.49,0.00030136,2]
[359360945,1745950249975,-288.52,0.00030136,2]
[359360947,1745950249985,-470.0,0.00030136,2]
[359360949,1745950249995,-530.63,0.00030136,2]
[359360951,1745950250005,-470.0,0.00030136,2]
[359360954,1745950250016,-470.0,0.00030136,2]
[359360956,1745950250026,-633.222582,0.00030136,2]
[359360958,1745950250037,-522.72,0.00030136,2]
[359360960,1745950250046,-151.79,0.00030137,2]
[359360962,1745950250056,-25129.2154033,0.000304,3]
[359360964,1745950250067,-470.0,0.00030409,2]
[359360966,1745950250079,-470.0,0.00030409,2]
[359360968,1745950250089,-150.0,0.0003041,2]
[359360970,1745950250099,-470.0,0.0003041,2]
[359360972,1745950250109,-567.98,0.0003041,2]
[359360975,1745950250120,-540.63,0.0003041,2]
[359360977,1745950250130,-470.0,0.0003041,2]
[359360979,1745950250141,-470.0,0.0003041,2]
[359360981,1745950250151,-470.0,0.0003041,2]
[359360983,1745950250162,-584.9,0.0003041,2]
[359360985,1745950250172,-541.78,0.0003041,2]
[359360987,1745950250182,-470.0,0.0003041,2]
[359360989,1745950250192,-470.0,0.0003041,2]
[359360991,1745950250203,-943.06293359,0.0003041,2]
[359360994,1745950250222,-1325.0000005,0.0003041,2]
[359360997,1745950250238,-285.92706591,0.0003041,2]
[359360999,1745950250248,-2433.67,0.0003041,2]
[359361001,1745950250260,-810.71,0.0003041,2]
[359361004,1745950250270,-582.22,0.0003041,2]
[359361006,1745950250280,-470.0,0.0003041,2]
[359361008,1745950250291,-470.0,0.0003041,2]
[359361010,1745950250301,-530.63,0.0003041,2]
[359361012,1745950250312,-470.0,0.0003041,2]
[359361014,1745950250323,-470.0,0.0003041,2]
[359361016,1745950250333,-633.222582,0.0003041,2]
[359361018,1745950250344,-522.72,0.0003041,2]
[359361020,1745950250354,-21094.3903568,0.00030664,3]
[359361022,1745950250365,-470.0,0.00030683,2]
[359361024,1745950250375,-470.0,0.00030683,2]
[359361026,1745950250385,-470.0,0.00030683,2]
[359361029,1745950250395,-470.0,0.00030684,2]
[359361031,1745950250405,-567.98,0.00030684,2]
[359361033,1745950250415,-540.63,0.00030684,2]
[359361035,1745950250425,-438.37719666,0.00030684,2]
[359361037,1745950250435,-470.0,0.00030684,2]
[359361039,1745950250446,-470.0,0.00030684,2]
[359361041,1745950250457,-584.9,0.00030684,2]
[359361043,1745950250467,-541.78,0.00030684,2]
[359361045,1745950250480,-470.0,0.00030684,2]
[359361047,1745950250491,-470.0,0.00030684,2]
[359361049,1745950250501,-2553.99,0.00030684,2]
[359361051,1745950250511,-2433.67,0.00030684,2]
[359361053,1745950250521,-810.71,0.00030684,2]
[359361055,1745950250532,-582.22,0.00030684,2]
[359361057,1745950250543,-470.0,0.00030684,2]
[359361059,1745950250553,-470.0,0.00030684,2]
[359361061,1745950250564,-530.63,0.00030684,2]
[359361063,1745950250574,-470.0,0.00030684,2]
[359361066,1745950250585,-470.0,0.00030684,2]
[359361068,1745950250595,-633.222582,0.00030684,2]
[359361070,1745950250606,-522.72,0.00030684,2]
[359361072,1745950250617,-25129.2154033,0.00030948,3]
[359361074,1745950250627,-21094.3903568,0.00030948,3]
[359361076,1745950250637,-470.0,0.00030957,2]
[359361078,1745950250649,-470.0,0.00030957,2]
[359361080,1745950250659,-470.0,0.00030957,2]
[359361083,1745950250670,-470.0,0.00030958,2]
[359361085,1745950250681,-567.98,0.00030958,2]
[359361087,1745950250691,-540.63,0.00030958,2]
[359361115,1745950250949,-470.0,0.00030958,2]
[359361117,1745950250959,-164.833706,0.00030958,2]
[359361119,1745950250968,-470.0,0.00030958,2]
[359361122,1745950250978,-74.63075052,0.00030958,2]
[359361124,1745950250994,-510.26924948,0.00030958,2]
[359361126,1745950251003,-541.78,0.00030958,2]
[359361128,1745950251013,-470.0,0.00030958,2]
[359361130,1745950251023,-470.0,0.00030958,2]
[359361132,1745950251032,-2553.99,0.00030958,2]
[359361134,1745950251042,-2433.67,0.00030958,2]
[359361136,1745950251052,-810.71,0.00030958,2]
[359361138,1745950251062,-582.22,0.00030958,2]
[359361140,1745950251071,-608.34,0.00030958,2]
[359361142,1745950251082,-470.0,0.00030958,2]
[359361144,1745950251091,-530.63,0.00030958,2]
[359361146,1745950251101,-218.757989,0.00030958,2]
[359361149,1745950251112,-470.0,0.00030958,2]
[359361151,1745950251122,-470.0,0.00030958,2]
[359361153,1745950251132,-633.222582,0.00030958,2]
[359361155,1745950251141,-522.72,0.00030958,2]
[359361157,1745950251152,-1556.5197592,0.00030976,2]
[359361159,1745950251163,-304.53,0.0003113,2]
[359361161,1745950251172,-470.0,0.00031231,2]
[359361163,1745950251182,-470.0,0.00031231,2]
[359361165,1745950251192,-470.0,0.00031232,2]
[359361167,1745950251202,-567.98,0.00031232,2]
[359361169,1745950251212,-540.63,0.00031232,2]
[359361171,1745950251221,-232.53905877,0.00031232,2]
[359361173,1745950251231,-470.0,0.00031232,2]
[359361175,1745950251240,-584.9,0.00031232,2]
[359361177,1745950251249,-541.78,0.00031232,2]
[359361179,1745950251259,-470.0,0.00031232,2]
[359361181,1745950251268,-470.0,0.00031232,2]
[359361183,1745950251279,-2553.99,0.00031232,2]
[359361185,1745950251288,-2433.67,0.00031232,2]
[359361187,1745950251297,-810.71,0.00031232,2]
[359361189,1745950251306,-582.22,0.00031232,2]
[359361191,1745950251316,-470.0,0.00031232,2]
[359361193,1745950251326,-530.63,0.00031232,2]
[359361195,1745950251335,-470.0,0.00031232,2]
[359361197,1745950251345,-197.76,0.00031232,2]
[359361199,1745950251355,-633.222582,0.00031232,2]
[359361201,1745950251365,-522.72,0.00031232,2]
[359361203,1745950251374,-340.24696067,0.00031413,2]
[359361205,1745950251384,-25129.2154033,0.00031417,3]
[359361207,1745950251394,-1000.0,0.00031427,2]
[359361209,1745950251403,-21094.3903568,0.00031496,3]
[359361211,1745950251412,-470.0,0.00031505,2]
[359361213,1745950251422,-470.0,0.00031505,2]
[359361215,1745950251431,-377.53620993,0.00031506,2]
[359361217,1745950251441,-567.98,0.00031506,2]
[359361219,1745950251450,-540.63,0.00031506,2]
[359361221,1745950251460,-470.0,0.00031506,2]
[359361223,1745950251469,-584.9,0.00031506,2]
[359361225,1745950251481,-541.78,0.00031506,2]
[359361227,1745950251491,-470.0,0.00031506,2]
[359361229,1745950251500,-470.0,0.00031506,2]
[359361231,1745950251509,-2553.99,0.00031506,2]
[359361233,1745950251519,-2433.67,0.00031506,2]
[359361235,1745950251528,-810.71,0.00031506,2]
[359361237,1745950251537,-582.22,0.00031506,2]
[359361239,1745950251546,-470.0,0.00031506,2]
[359361241,1745950251556,-530.63,0.00031506,2]
[359361243,1745950251567,-470.0,0.00031506,2]
[359361245,1745950251576,-633.222582,0.00031506,2]
[359361247,1745950251586,-522.72,0.00031506,2]
[359361249,1745950251596,-500.0,0.00031712,5]
[359361251,1745950251607,-1328.98962743,0.0003177,3]
[359361257,1745950251646,-19765.40072937,0.0003177,3]
[359361259,1745950251657,-180.32,0.00031779,2]
[359361261,1745950251667,-470.0,0.00031779,2]
[359361263,1745950251677,-189.44,0.00031779,2]
[359361265,1745950251686,-150.0,0.0003178,2]
[359361267,1745950251696,-567.98,0.0003178,2]
[359361269,1745950251705,-540.63,0.0003178,2]
[359361271,1745950251715,-164.833706,0.0003178,2]
[359361273,1745950251725,-470.0,0.0003178,2]
[359361275,1745950251735,-584.9,0.0003178,2]
[359361277,1745950251746,-541.78,0.0003178,2]
[359361279,1745950251756,-470.0,0.0003178,2]
[359361281,1745950251765,-470.0,0.0003178,2]
[359361283,1745950251774,-2553.99,0.0003178,2]
[359361285,1745950251783,-2433.67,0.0003178,2]
[359361287,1745950251793,-810.71,0.0003178,2]
[359361288,1745950251802,-582.22,0.0003178,2]
[359361289,1745950251812,-470.0,0.0003178,2]
[359361290,1745950251822,-530.63,0.0003178,2]
[359361291,1745950251832,-470.0,0.0003178,2]
[359361292,1745950251843,-633.222582,0.0003178,2]
[359361293,1745950251853,-522.72,0.0003178,2]
[359361294,1745950251863,-200.0,0.000319,11]
[359361295,1745950251872,-20639.22714842,0.00031962,3]
[359361296,1745950251887,-4489.98825488,0.00031962,3]
[359361297,1745950251897,-500.0,0.00031971,5]
[359361298,1745950251907,-470.0,0.00032053,2]
[359361299,1745950251916,-567.98,0.00032054,2]
[359361300,1745950251925,-540.63,0.00032054,2]
[359361301,1745950251935,-470.0,0.00032054,2]
[359361302,1745950251945,-584.9,0.00032054,2]
[359361304,1745950251954,-541.78,0.00032054,2]
[359361306,1745950251964,-470.0,0.00032054,2]
[359361308,1745950251973,-470.0,0.00032054,2]
[359361310,1745950251983,-830.5602847,0.00032054,2]
[359361312,1745950251997,-1723.4297153,0.00032054,2]
[359361314,1745950252006,-2433.67,0.00032054,2]
[359361316,1745950252016,-810.71,0.00032054,2]
[359361318,1745950252026,-582.22,0.00032054,2]
[359361320,1745950252037,-470.0,0.00032054,2]
[359361322,1745950252046,-530.63,0.00032054,2]
[359361324,1745950252057,-470.0,0.00032054,2]
[359361327,1745950252069,-633.222582,0.00032054,2]
[359361328,1745950252079,-178.00195333,0.00032054,2]
[359361331,1745950252091,-344.71804667,0.00032054,2]
[359361333,1745950252100,-257.87,0.00032128,4]
[359361335,1745950252110,-797.0,0.00032131,2]
[359361337,1745950252119,-8186.12277189,0.00032318,3]
[359361339,1745950252131,-343.8301036,0.00032318,3]
[359361341,1745950252143,-400.76399998,0.00032318,3]
[359361367,1745950252374,-232.52,0.00027669,2]
[359361369,1745950252384,-470.0,0.0002767,2]
[359361371,1745950252394,-593.01969121,0.00027944,2]
[359361373,1745950252403,-5584.96030861,0.00032318,3]
[359361375,1745950252414,-841.23567221,0.00032318,3]
[359361377,1745950252425,-869.23473425,0.00032318,3]
[359361379,1745950252436,-504.76511919,0.00032318,3]
[359361381,1745950252448,-4363.47764707,0.00032318,3]
[359361383,1745950252457,-470.0,0.00032327,2]
[359361385,1745950252467,-567.98,0.00032328,2]
[359361387,1745950252479,-540.63,0.00032328,2]
[359361389,1745950252490,-470.0,0.00032328,2]
[359361391,1745950252499,-584.9,0.00032328,2]
[359361393,1745950252509,-470.0,0.00032328,2]
[359361395,1745950252518,-483.99,0.00032328,2]
[359361397,1745950252529,-2553.99,0.00032328,2]
[359361399,1745950252538,-2433.67,0.00032328,2]
[359361401,1745950252548,-810.71,0.00032328,2]
[359361404,1745950252561,-582.22,0.00032328,2]
[359361405,1745950252571,-470.0,0.00032328,2]
[359361407,1745950252581,-530.63,0.00032328,2]
[359361410,1745950252591,-470.0,0.00032328,2]
[359361412,1745950252600,-522.72,0.00032328,2]
[359361414,1745950252610,-25129.2154033,0.00032592,3]
[359361415,1745950252620,-470.0,0.00032601,2]
[359361417,1745950252629,-567.98,0.00032602,2]
[359361419,1745950252639,-540.63,0.00032602,2]
[359361421,1745950252648,-470.0,0.00032602,2]
[359361423,1745950252658,-584.9,0.00032602,2]
[359361425,1745950252667,-470.0,0.00032602,2]
[359361427,1745950252676,-2553.99,0.00032602,2]
[359361429,1745950252686,-2433.67,0.00032602,2]
[359361431,1745950252695,-810.71,0.00032602,2]
[359361433,1745950252704,-582.22,0.00032602,2]
[359361435,1745950252713,-470.0,0.00032602,2]
[359361437,1745950252724,-530.63,0.00032602,2]
[359361439,1745950252734,-470.0,0.00032602,2]
[359361442,1745950252744,-522.72,0.00032602,2]
[359361444,1745950252754,-1556.5197592,0.00032679,2]
[359361446,1745950252763,-245.82758545,0.00032875,2]
[359361448,1745950252772,-567.98,0.00032876,2]
[359361450,1745950252782,-540.63,0.00032876,2]
[359361452,1745950252791,-470.0,0.00032876,2]
[359361453,1745950252800,-584.9,0.00032876,2]
[359361456,1745950252810,-470.0,0.00032876,2]
[359361458,1745950252819,-2553.99,0.00032876,2]
[359361460,1745950252829,-2433.67,0.00032876,2]
[359361462,1745950252839,-810.71,0.00032876,2]
[359361463,1745950252848,-582.22,0.00032876,2]
[359361465,1745950252857,-470.0,0.00032876,2]
[359361467,1745950252866,-530.63,0.00032876,2]
[359361469,1745950252877,-470.0,0.00032876,2]
[359361471,1745950252887,-522.72,0.00032876,2]
[359361473,1745950252897,-21094.3903568,0.0003313,3]
[359361475,1745950252907,-151.4650388,0.0003313,2]
[359361477,1745950252916,-25129.2154033,0.0003314,3]
[359361479,1745950252926,-150.0,0.0003315,2]
[359361481,1745950252935,-567.98,0.0003315,2]
[359361483,1745950252945,-540.63,0.0003315,2]
[359361485,1745950252954,-470.0,0.0003315,2]
[359361487,1745950252964,-584.9,0.0003315,2]
[359361489,1745950252974,-470.0,0.0003315,2]
[359361491,1745950252984,-2553.99,0.0003315,2]
[359361493,1745950252994,-2433.67,0.0003315,2]
[359361495,1745950253005,-810.71,0.0003315,2]
[359361497,1745950253015,-582.22,0.0003315,2]
[359361499,1745950253026,-470.0,0.0003315,2]
[359361501,1745950253036,-530.63,0.0003315,2]
[359361503,1745950253047,-317.40575604,0.0003315,2]
[359361505,1745950253056,-522.72,0.0003315,2]
[359361507,1745950253066,-260.17,0.00033165,2]
[359361509,1745950253076,-340.24696067,0.00033197,2]
[359361511,1745950253086,-304.53,0.00033394,2]
[359361513,1745950253096,-942.0,0.000334,5]
[359361515,1745950253105,-567.98,0.00033424,2]
[359361517,1745950253114,-540.63,0.00033424,2]
[359361519,1745950253124,-318.41983868,0.00033424,2]
[359361521,1745950253133,-584.9,0.00033424,2]
[359361523,1745950253142,-558.54,0.00033424,2]
[359361525,1745950253151,-2553.99,0.00033424,2]
[359361527,1745950253161,-2433.67,0.00033424,2]
[359361529,1745950253170,-810.71,0.00033424,2]
[359361531,1745950253180,-582.22,0.00033424,2]
[359361533,1745950253189,-599.95749741,0.00033424,2]
[359361535,1745950253199,-530.63,0.00033424,2]
[359361537,1745950253208,-522.72,0.00033424,2]
[359361539,1745950253220,-1000.0,0.00033452,5]
[359361541,1745950253230,-1000.0,0.00033452,5]
[359361543,1745950253239,-1536.98,0.000335,2]
[359361545,1745950253248,-21094.3903568,0.00033668,3]
[359361547,1745950253257,-568.11966955,0.00033698,2]
[359361549,1745950253266,-540.63,0.00033698,2]
[359361551,1745950253276,-584.9,0.00033698,2]
[359361553,1745950253285,-2553.99,0.00033698,2]
[359361555,1745950253294,-2433.67,0.00033698,2]
[359361557,1745950253304,-810.71,0.00033698,2]
[359361560,1745950253315,-582.22,0.00033698,2]
[359361561,1745950253324,-530.63,0.00033698,2]
[359361563,1745950253334,-522.72,0.00033698,2]
[359361565,1745950253343,-25129.2154033,0.00033962,3]
[359361568,1745950253353,-540.70401518,0.00033972,2]
[359361570,1745950253362,-585.02933939,0.00033972,2]
[359361572,1745950253372,-2553.99,0.00033972,2]
[359361574,1745950253381,-2433.67,0.00033972,2]
[359361576,1745950253391,-810.7749516,0.00033972,2]
[359361578,1745950253401,-582.4353362,0.00033972,2]
[359361580,1745950253410,-530.85964261,0.00033972,2]
[359361582,1745950253420,-522.76,0.00033972,2]
[359361584,1745950253429,-2553.99,0.00034246,2]
[359361586,1745950253439,-2433.67,0.00034246,2]
[359361588,1745950253448,-1556.5197592,0.00034383,2]
[359361590,1745950253458,-2000.0,0.00034491,4]
[359361592,1745950253467,-21094.3903568,0.0003451,3]
[359361594,1745950253478,-150.0,0.0003452,2]
[359361596,1745950253489,-2553.99,0.0003452,2]
[359361598,1745950253498,-2433.67,0.0003452,2]
[359361600,1745950253507,-1000.0,0.00034627,5]
[359361602,1745950253517,-2554.05007327,0.00034793,2]
[359361604,1745950253527,-2433.81317107,0.00034793,2]
[359361606,1745950253536,-1000.0,0.00034919,2]
[359361608,1745950253545,-340.24696067,0.00034981,2]
[359361610,1745950253555,-797.0,0.00035131,2]
[359361612,1745950253567,-500.0,0.00035616,2]
[359361614,1745950253576,-500.0,0.00035616,2]
[359361616,1745950253587,-500.0,0.00035616,2]
[359361618,1745950253598,-215.3453597,0.00035616,2]
[359361620,1745950253608,-497.12977861,0.00035616,7]
[359361622,1745950253619,-304.53,0.00035658,2]
[359361623,1745950253629,-150.0,0.00035889,2]
[359361625,1745950253639,-2000.0,0.00036042,4]
[359361628,1745950253650,-1556.5197592,0.00036086,2]
[359361630,1745950253660,-340.24696067,0.00036764,2]
[359361632,1745950253671,-150.0,0.00037259,2]
[359361634,1745950253681,-1000.0,0.00037451,5]
[359361636,1745950253691,-2000.0,0.00037593,4]
[359361638,1745950253702,-1210.514,0.00037752,49]
[359361640,1745950253712,-1556.5197592,0.0003779,2]
[359361642,1745950253722,-1458.0,0.0003779,20]
[359361644,1745950253732,-25129.2154033,0.0003786,4]
[359361646,1745950253741,-21094.3903568,0.0003786,4]
[359361648,1745950253752,-14538.6297,0.0003788,2]
[359361650,1745950253762,-304.53,0.00037921,2]
[359361652,1745950253772,-797.0,0.00038131,2]
[359361654,1745950253783,-1458.0,0.0003818,20]
[359361656,1745950253794,-25129.2154033,0.00038337,4]
[359361658,1745950253804,-21094.3903568,0.00038337,4]
[359361660,1745950253818,-12500.0,0.00038347,5]
[359361662,1745950253827,-12500.0,0.00038356,5]
[359361664,1745950253837,-183.87572186,0.00038356,2]
[359361666,1745950253847,-242.71,0.000384,31]
[359361668,1745950253857,-242.71,0.000384,31]
[359361670,1745950253867,-242.71,0.000384,31]
[359361672,1745950253877,-242.71,0.000384,31]
[359361674,1745950253887,-242.71,0.000384,31]
[359361676,1745950253901,-242.71,0.000384,31]
[359361678,1745950253913,-242.71,0.000384,31]
[359361680,1745950253924,-242.71,0.000384,31]
[359361682,1745950253935,-242.71,0.000384,31]
[359361684,1745950253945,-242.71,0.000384,31]